bitfinex-derivatives/quotes_SOLF0:USTF0_20260117
["timestamp","ask_amount","ask_price","bid_price","bid_amount"]
[1768659363881,5.21195233,143.93,143.88,3.25979831]
[1768659364075,3.18857536,143.94,143.88,3.25979831]
[1768659364276,5.21236405,143.93,143.88,3.25979831]
[1768659364480,3.18857536,143.94,143.88,3.25979831]
[1768659364678,5.21236405,143.93,143.88,3.25979831]
[1768659364981,3.18857536,143.94,143.88,9.51699831]
[1768659365183,5.21236405,143.93,143.88,9.51699831]
[1768659365380,3.18857536,143.94,143.88,9.51699831]
[1768659365582,5.21257382,143.93,143.88,9.51699831]
[1768659365784,3.18857536,143.94,143.88,9.51699831]
[1768659365975,5.21257506,143.93,143.88,9.51699831]
[1768659366176,3.18857536,143.94,143.88,9.51699831]
[1768659366383,5.21308788,143.93,143.88,9.51699831]
[1768659366674,3.18857536,143.94,143.88,9.51699831]
[1768659366874,5.21308788,143.93,143.88,9.51699831]
[1768659367079,3.18857536,143.94,143.88,9.51699831]
[1768659367279,5.21368072,143.93,143.88,9.51699831]
[1768659367477,3.18857536,143.97,143.91,3.25979831]
[1768659368283,3.18857536,143.97,143.91,9.51569831]
[1768659372490,3.18857536,143.97,143.91,3.25979831]
[1768659375288,4.91985481,143.97,143.91,3.25979831]
[1768659376091,3.18857536,143.97,143.91,3.25979831]
[1768659377789,3.18857536,143.97,143.91,9.51569831]
[1768659378880,3.18857536,143.97,143.92,3.25979831]
[1768659383690,4.99912067,143.99,143.92,3.25979831]
[1768659384187,3.26784122,143.99,143.92,3.25979831]
[1768659385691,3.26784122,143.99,143.93,3.10676442]
[1768659386797,3.26784122,144.01,143.94,3.10676442]
[1768659386994,5.17238144,144.0,143.94,3.10676442]
[1768659387191,3.26784122,144.01,143.94,3.10676442]
[1768659387489,3.26784122,144.01,143.95,3.10676442]
[1768659388492,3.26784122,144.03,143.96,3.10676442]
[1768659389495,3.26784122,144.03,143.98,3.10676442]
[1768659392686,6.2488,144.08,143.99,4.90516356]
[1768659392687,2.99698781,144.05,143.99,4.90516356]
[1768659393293,2.99698781,144.05,143.99,3.17388411]
[1768659401207,2.99698781,144.05,143.99,9.42628411]
[1768659402905,2.99698781,144.07,144.01,3.17388411]
[1768659403906,2.99698781,144.07,144.01,9.42518411]
[1768659404211,2.99698781,144.07,144.02,3.17388411]
[1768659405914,2.99698781,144.07,144.0,3.17388411]
[1768659406318,2.99698781,144.06,144.0,3.17388411]
[1768659407517,2.99698781,144.05,143.98,3.17388411]
[1768659409921,2.99698781,144.05,143.99,3.17388411]
[1768659410115,1.73127945,144.06,143.99,3.17388411]
[1768659410516,4.72826726,144.06,144.0,3.17388411]
[1768659411427,2.99698781,144.06,144.0,3.17388411]
[1768659411912,2.99698781,144.06,144.01,3.0520971]
[1768659412113,2.99715313,144.08,144.01,3.0520971]
[1768659416123,2.99715313,144.06,144.01,3.0520971]
[1768659420634,2.99715313,144.06,144.0,6.252]
[1768659421226,2.99715313,144.06,143.99,3.0520971]
[1768659422323,1.73127945,144.05,143.99,3.0520971]
[1768659422527,2.99715313,144.04,143.97,3.0520971]
[1768659422727,2.99715313,144.02,143.93,3.0520971]
[1768659423120,2.99715313,144.02,143.94,3.0520971]
[1768659423827,2.99715313,144.02,143.94,9.3066971]
[1768659425228,2.99715313,144.02,143.94,3.0520971]
[1768659425929,2.99715313,144.0,143.94,3.0520971]
[1768659426526,2.99715313,144.0,143.91,4.78337655]
[1768659426726,97.2333,144.04,143.91,3.0520971]
[1768659426727,2.99715313,143.98,143.91,3.0520971]
[1768659430019,2.99715313,143.98,143.92,3.0520971]
[1768659430225,2.99715313,144.0,143.92,3.0520971]
[1768659432529,2.99715313,143.98,143.92,3.0520971]
[1768659439237,2.99715313,143.98,143.9,6.2562]
[1768659439238,2.99715313,143.97,143.9,9.3082971]
[1768659439731,2.99715313,143.97,143.9,3.0520971]
[1768659440727,4.72769374,143.96,143.9,3.0520971]
[1768659449747,4.98165325,143.98,143.9,3.0520971]
[1768659450749,3.25111264,143.98,143.91,3.0322237]
[1768659450950,4.98165325,143.98,143.91,3.0322237]
[1768659452754,3.11359845,143.97,143.91,3.0322237]
[1768659453251,3.11359845,143.97,143.92,3.08580514]
[1768659453853,9.36619845,143.99,143.92,3.08580514]
[1768659456058,3.11359845,143.98,143.92,3.08580514]
[1768659457558,3.11359845,143.97,143.9,3.08580514]
[1768659457756,1.73054061,143.96,143.9,3.08580514]
[1768659457951,4.84413906,143.96,143.9,3.08580514]
[1768659458658,3.11359845,143.95,143.88,9.34290514]
[1768659459255,3.11359845,143.95,143.89,3.08580514]
[1768659459947,3.11359845,143.95,143.89,6.2568]
[1768659460151,1.73054061,143.96,143.89,6.2568]
[1768659460152,9.36719845,143.97,143.9,3.08580514]
[1768659461060,3.11359845,143.96,143.9,3.08580514]
[1768659463153,4.84413906,143.96,143.9,3.08580514]
[1768659467560,3.11359845,143.96,143.9,3.08580514]
[1768659477466,3.11359845,143.96,143.91,3.04987753]
[1768659484572,4.97431102,143.98,143.91,3.04987753]
[1768659484773,5.23397656,143.97,143.92,3.04987753]
[1768659484972,3.24377041,143.98,143.92,3.04987753]
[1768659488974,3.24377041,143.98,143.93,3.04987753]
[1768659490073,4.97431102,144.0,143.94,3.04987753]
[1768659490377,5.23044232,143.99,143.94,3.04987753]
[1768659490678,4.97431102,144.0,143.94,3.04987753]
[1768659490870,8.47420885,143.99,143.94,3.04987753]
[1768659491174,3.24377041,143.99,143.94,3.04987753]
[1768659491774,1.73054061,144.0,143.94,3.04987753]
[1768659492071,5.2299117,143.99,143.94,3.04987753]
[1768659492275,4.97431102,144.0,143.94,3.04987753]
[1768659492467,5.22944972,143.99,143.94,3.04987753]
[1768659492668,4.97431102,144.0,143.94,3.04987753]
[1768659492875,5.22945218,143.99,143.94,3.04987753]
[1768659493076,4.97431102,144.0,143.94,3.04987753]
[1768659493276,5.22906442,143.99,143.94,3.04987753]
[1768659493478,4.97431102,144.0,143.94,3.04987753]
[1768659493677,5.22906876,143.99,143.94,3.04987753]
[1768659493866,4.97431102,144.0,143.94,3.04987753]
[1768659494070,5.22906876,143.99,143.94,3.04987753]
[1768659494270,4.97431102,144.0,143.94,3.04987753]
[1768659494472,5.22874662,143.99,143.94,3.04987753]
[1768659494772,4.97431102,144.0,143.94,3.04987753]
[1768659494972,5.22874662,143.99,143.94,3.04987753]
[1768659495281,4.97411483,144.0,143.94,3.04987753]
[1768659495475,5.22842176,143.99,143.94,3.04987753]
[1768659495773,4.97411483,144.0,143.94,3.04987753]
[1768659495974,5.22842176,143.99,143.94,3.04987753]
[1768659496174,4.97411483,144.0,143.94,9.30437753]
[1768659503477,3.23054317,143.99,143.92,6.2553]
[1768659503676,3.23054317,143.99,143.92,9.24195994]
[1768659503877,3.23054317,143.99,143.92,2.98665994]
[1768659504077,4.96088759,143.99,143.92,2.98665994]
[1768659504478,3.23054317,143.99,143.92,2.98665994]
[1768659504885,3.23054317,143.99,143.93,6.2549]
[1768659505376,3.23054317,143.99,143.94,6.2546]
[1768659510682,3.23054317,143.99,143.92,6.2553]
[1768659511388,97.2258,144.05,143.89,97.3267]
[1768659511389,3.23054317,143.97,143.9,6.2563]
[1768659511589,3.23054317,143.95,143.9,6.2563]
[1768659513386,3.23054317,143.95,143.9,9.52682178]
[1768659517193,3.23054317,143.95,143.9,6.2563]
[1768659518683,3.23054317,143.95,143.88,9.52752178]
[1768659519191,8.22423086,143.94,143.88,9.52752178]
[1768659519390,3.03108343,143.94,143.88,9.52752178]
[1768659526103,3.03108343,143.94,143.89,3.27052178]
[1768659529203,3.03108343,143.96,143.89,3.27052178]
[1768659531404,9.28418343,143.98,143.89,3.27052178]
[1768659531604,11.01452785,143.98,143.9,3.27052178]
[1768659531905,3.16670331,143.97,143.9,3.27052178]
[1768659539211,3.16670331,143.97,143.91,3.05365876]
[1768659539709,3.16670331,143.99,143.91,3.05365876]
[1768659540804,9.41930331,143.99,143.91,3.05365876]
[1768659541004,3.16670331,143.98,143.91,3.05365876]
[1768659542412,3.16670331,143.97,143.91,3.05365876]
[1768659544008,3.16670331,143.97,143.89,3.05365876]
[1768659544009,1.73034442,143.96,143.89,3.05365876]
[1768659544306,3.16670331,143.95,143.89,3.05365876]
[1768659546917,3.16670331,143.95,143.89,9.31045876]
[1768659552524,8.35340129,143.94,143.87,3.05365876]
[1768659552817,3.16670331,143.94,143.87,3.05365876]
[1768659553409,4.89704773,143.96,143.89,9.31045876]
[1768659553610,5.18725755,143.95,143.89,9.31045876]
[1768659553812,4.89704773,143.96,143.89,9.31045876]
[1768659554018,8.35388955,143.95,143.89,9.31045876]
[1768659554208,5.18718624,143.94,143.89,9.31045876]
[1768659556422,5.18718624,143.94,143.9,6.2564]
[1768659556921,3.16670331,143.95,143.9,6.2564]
[1768659558221,3.16670331,143.98,143.91,9.30965876]
[1768659558424,5.18834126,143.97,143.91,9.30965876]
[1768659558625,4.89819135,143.98,143.91,9.30965876]
[1768659558824,5.18829381,143.97,143.91,9.30965876]
[1768659559020,4.89819135,143.98,143.91,9.30965876]
[1768659559221,5.18814828,143.97,143.91,9.30965876]
[1768659559518,4.89819135,143.98,143.91,9.30965876]
[1768659559719,5.18814482,143.97,143.91,9.30965876]
[1768659559924,4.89819135,143.98,143.91,3.05365876]
[1768659560124,5.18814482,143.97,143.91,3.05365876]
[1768659560324,4.89819135,143.98,143.91,3.05365876]
[1768659560520,5.18800262,143.97,143.91,3.05365876]
[1768659560725,4.89819135,143.98,143.91,3.05365876]
[1768659560923,5.18799966,143.97,143.91,3.05365876]
[1768659561121,4.89819135,143.98,143.91,3.05365876]
[1768659561322,5.18784924,143.97,143.91,3.05365876]
[1768659561522,4.89819135,143.98,143.91,3.05365876]
[1768659561722,5.18785847,143.97,143.91,3.05365876]
[1768659561926,4.89819135,143.98,143.91,3.05365876]
[1768659562128,5.18781648,143.97,143.91,3.05365876]
[1768659562426,4.89819135,143.98,143.91,3.05365876]
[1768659562627,5.18759258,143.97,143.92,3.31397225]
[1768659562827,1.73148804,143.99,143.92,3.31397225]
[1768659563030,5.18728078,143.98,143.92,3.31397225]
[1768659563229,1.73148804,143.99,143.92,3.31397225]
[1768659563536,5.18712509,143.98,143.92,3.31397225]
[1768659563724,1.73148804,143.99,143.92,3.31397225]
[1768659563923,5.18673031,143.98,143.92,3.31397225]
[1768659564125,1.73148804,143.99,143.92,3.31397225]
[1768659564432,5.1869206,143.98,143.92,3.31397225]
[1768659564631,1.73148804,143.99,143.92,3.31397225]
[1768659564824,5.18642882,143.98,143.92,3.31397225]
[1768659565020,1.73148804,143.99,143.92,3.31397225]
[1768659565220,5.18665771,143.98,143.92,3.31397225]
[1768659565425,1.73148804,143.99,143.92,3.31397225]
[1768659565725,5.18622798,143.98,143.92,3.31397225]
[1768659566029,4.98382552,143.99,143.92,3.31397225]
[1768659566230,5.1864978,143.98,143.92,3.31397225]
[1768659566530,4.98382552,143.99,143.92,3.31397225]
[1768659566731,5.18618841,143.98,143.92,3.31397225]
[1768659566936,4.98382552,143.99,143.92,3.31397225]
[1768659567130,5.18618719,143.98,143.92,3.31397225]
[1768659567333,4.98382552,143.99,143.92,3.31397225]
[1768659567533,5.1861625,143.98,143.92,3.31397225]
[1768659567733,4.98382552,143.99,143.92,3.31397225]
[1768659567935,5.18616252,143.98,143.92,3.31397225]
[1768659568135,4.98382552,143.99,143.92,3.31397225]
[1768659568336,5.18646471,143.98,143.92,3.31397225]
[1768659568531,4.98382552,143.99,143.92,3.31397225]
[1768659568732,5.18620742,143.98,143.92,3.31397225]
[1768659568932,4.98382552,143.99,143.92,3.31397225]
[1768659569133,5.18620742,143.98,143.92,3.31397225]
[1768659569333,4.98382552,143.99,143.92,3.31397225]
[1768659569633,5.18633402,143.98,143.92,3.31397225]
[1768659569833,4.98382552,143.99,143.92,3.31397225]
[1768659570039,5.18633402,143.98,143.92,3.31397225]
[1768659570339,4.98382552,143.99,143.92,3.31397225]
[1768659570538,5.18654458,143.98,143.92,3.31397225]
[1768659570734,4.98382552,143.99,143.92,3.31397225]
[1768659570934,5.18654458,143.98,143.92,3.31397225]
[1768659571134,4.98382552,143.99,143.92,3.31397225]
[1768659571340,5.18700854,143.98,143.92,3.31397225]
[1768659571536,3.25233748,143.98,143.92,3.31397225]
[1768659580441,3.25233748,143.98,143.93,3.22439202]
[1768659588553,4.8834958,144.0,143.93,3.22439202]
[1768659588754,5.18213681,143.99,143.93,3.22439202]
[1768659588942,4.8834958,144.0,143.93,3.22439202]
[1768659589243,5.18213681,143.99,143.93,3.22439202]
[1768659589456,4.8834958,144.0,143.93,3.22439202]
[1768659589650,5.18208809,143.99,143.93,3.22439202]
[1768659589860,4.8834958,144.0,143.93,3.22439202]
[1768659590061,5.18208809,143.99,143.93,3.22439202]
[1768659590258,4.8834958,144.0,143.93,3.22439202]
[1768659590455,5.18210881,143.99,143.93,3.22439202]
[1768659590656,4.8834958,144.0,143.93,3.22439202]
[1768659590858,5.1820541,143.99,143.93,3.22439202]
[1768659591061,4.8834958,144.0,143.93,3.22439202]
[1768659591262,5.1820541,143.99,143.93,3.22439202]
[1768659591463,4.8834958,144.0,143.93,3.22439202]
[1768659591666,5.1820437,143.99,143.93,3.22439202]
[1768659591866,3.15200776,144.0,143.93,3.22439202]
[1768659592069,5.1820437,143.99,143.93,3.22439202]
[1768659592364,4.8834958,144.0,143.93,3.22439202]
[1768659592561,5.18205685,143.99,143.93,3.22439202]
[1768659592768,4.8834958,144.0,143.93,3.22439202]
[1768659592969,5.18205685,143.99,143.93,3.22439202]
[1768659593168,4.8834958,144.0,143.93,3.22439202]
[1768659593370,5.18205685,143.99,143.93,3.22439202]
[1768659593569,3.06099289,143.99,143.93,3.22439202]
[1768659596270,3.06099289,143.99,143.93,9.47949202]
[1768659600378,5.18678309,143.98,143.93,9.47949202]
[1768659600576,3.06099289,143.99,143.93,9.47949202]
[1768659600876,5.18678309,143.98,143.93,9.47949202]
[1768659601077,3.06099289,143.99,143.93,9.47949202]
[1768659601278,8.24777598,143.98,143.93,6.2551]
[1768659601576,3.06099289,143.96,143.91,6.2558]
[1768659602377,3.06099289,143.95,143.91,6.2558]
[1768659602981,3.06099289,143.95,143.89,9.41124675]
[1768659603166,3.06099289,143.95,143.89,3.15464675]
[1768659604878,3.06099289,143.95,143.9,6.2564]
[1768659606479,3.06099289,143.97,143.91,3.15464675]
[1768659606681,5.1933066,143.96,143.91,3.15464675]
[1768659606882,3.06099289,143.97,143.91,3.15464675]
[1768659607083,8.25429949,143.96,143.91,3.15464675]
[1768659607279,3.06099289,143.96,143.91,3.15464675]
[1768659613186,3.06099289,143.98,143.91,3.15464675]
[1768659613484,3.06099289,143.98,143.92,3.15464675]
[1768659617391,3.06099289,143.98,143.93,3.15464675]
[1768659619995,3.06099289,143.98,143.91,3.15464675]
[1768659620289,8.25251954,143.97,143.91,3.15464675]
[1768659620590,3.06099289,143.96,143.9,11.14124922]
[1768659622684,3.06099289,143.96,143.9,9.41094675]
[1768659625795,3.06099289,143.96,143.91,6.256]
[1768659631011,3.06099289,143.96,143.91,9.29025812]
[1768659634712,3.03589287,143.98,143.92,9.43636738]
[1768659634907,3.03589287,143.98,143.92,3.18086738]
[1768659635108,5.21264274,143.97,143.92,3.18086738]
[1768659635307,3.03589287,143.98,143.92,3.18086738]
[1768659635514,5.21279539,143.97,143.92,3.18086738]
[1768659635703,3.03589287,143.98,143.92,3.18086738]
[1768659635909,5.21279539,143.97,143.92,3.18086738]
[1768659636109,3.03589287,143.98,143.92,3.18086738]
[1768659636314,5.21279539,143.97,143.92,3.18086738]
[1768659636512,3.03589287,143.98,143.92,3.18086738]
[1768659636709,5.21295552,143.97,143.92,3.18086738]
[1768659636910,3.03589287,143.98,143.92,3.18086738]
[1768659637208,5.21295552,143.97,143.92,3.18086738]
[1768659637408,3.03589287,143.98,143.92,3.18086738]
[1768659637608,5.21312218,143.97,143.92,3.18086738]
[1768659637805,3.03589287,143.98,143.92,3.18086738]
[1768659638005,5.21312218,143.97,143.92,3.18086738]
[1768659638204,3.03589287,143.98,143.92,3.18086738]
[1768659638417,5.21322126,143.97,143.92,3.18086738]
[1768659638614,3.03589287,143.98,143.92,3.18086738]
[1768659638813,8.24918983,143.97,143.92,3.18086738]
[1768659639012,3.03589287,143.97,143.92,3.18086738]
[1768659643721,3.03589287,143.97,143.89,273.82786985]
[1768659644019,3.03589287,143.97,143.9,3.18086738]
[1768659646424,3.03589287,143.97,143.91,3.18086738]
[1768659646622,3.03589287,143.97,143.91,1.73030247]
[1768659646925,3.03589287,143.97,143.92,3.18086738]
[1768659647111,6.2527,143.99,143.92,3.18086738]
[1768659647318,5.21494338,143.98,143.92,3.18086738]
[1768659647516,5.21494338,143.97,143.92,3.18086738]
[1768659647811,9.28859287,143.99,143.92,3.18086738]
[1768659648017,5.21500975,143.98,143.92,3.18086738]
[1768659648326,5.21500556,143.97,143.92,3.18086738]
[1768659648527,9.28859287,143.99,143.92,3.18086738]
[1768659648723,5.21520907,143.98,143.92,3.18086738]
[1768659648932,9.28859287,143.99,143.92,3.18086738]
[1768659649127,8.25110072,143.98,143.92,3.18086738]
[1768659649327,5.21520785,143.97,143.92,3.18086738]
[1768659652633,3.10816702,143.96,143.9,3.20810874]
[1768659652834,4.83846949,143.94,143.88,3.20810874]
[1768659653127,3.10816702,143.94,143.88,3.20810874]
[1768659656732,4.83846949,143.97,143.89,3.20810874]
[1768659656927,5.21361607,143.96,143.89,3.20810874]
[1768659657127,4.83846949,143.97,143.89,3.20810874]
[1768659657329,5.21329907,143.96,143.89,3.20810874]
[1768659657624,3.10816702,143.96,143.89,3.20810874]
[1768659659232,5.21299124,143.95,143.89,3.20810874]
[1768659659433,3.10816702,143.96,143.89,3.20810874]
[1768659659629,5.21293772,143.95,143.89,3.20810874]
[1768659659835,3.10816702,143.96,143.89,3.20810874]
[1768659660033,5.21293772,143.95,143.89,3.20810874]
[1768659660334,3.10816702,143.96,143.89,3.20810874]
[1768659660528,5.21306232,143.95,143.89,3.20810874]
[1768659660835,9.36216702,143.96,143.89,3.20810874]
[1768659661031,5.21306232,143.95,143.89,3.20810874]
[1768659661238,9.36216702,143.96,143.89,3.20810874]
[1768659661436,5.2130763,143.95,143.89,3.20810874]
[1768659661636,9.36216702,143.96,143.89,3.20810874]
[1768659661839,5.2130763,143.95,143.89,3.20810874]
[1768659662137,9.36216702,143.96,143.89,3.20810874]
[1768659662437,5.21315197,143.95,143.89,3.20810874]
[1768659662736,9.36216702,143.96,143.89,3.20810874]
[1768659662935,5.21315197,143.95,143.89,3.20810874]
[1768659663136,9.36216702,143.96,143.89,3.20810874]
[1768659663338,5.21327821,143.95,143.89,3.20810874]
[1768659663537,9.36216702,143.96,143.89,3.20810874]
[1768659663732,5.2664727,143.95,143.89,3.20810874]
[1768659663932,9.36216702,143.96,143.89,3.20810874]
[1768659664141,5.2664727,143.95,143.89,3.20810874]
[1768659664340,9.36216702,143.96,143.89,3.20810874]
[1768659664636,5.26665316,143.95,143.89,3.20810874]
[1768659664837,9.36216702,143.96,143.89,3.20810874]
[1768659665039,5.26665316,143.95,143.89,3.20810874]
[1768659665234,9.36216702,143.96,143.89,3.20810874]
[1768659665433,5.26659808,143.95,143.89,3.20810874]
[1768659665633,9.36216702,143.96,143.89,3.20810874]
[1768659665833,5.26659808,143.95,143.89,3.20810874]
[1768659666030,9.36216702,143.96,143.89,3.20810874]
[1768659666240,5.26659808,143.95,143.89,3.20810874]
[1768659666434,9.36216702,143.96,143.89,3.20810874]
[1768659666634,8.37473779,143.95,143.89,3.20810874]
[1768659666834,3.10816702,143.95,143.89,3.20810874]
[1768659679138,3.10816702,143.95,143.89,9.46490874]
[1768659683253,4.93032702,143.98,143.9,3.27171474]
[1768659683454,5.26591474,143.97,143.9,3.27171474]
[1768659683652,4.93032702,143.98,143.9,3.27171474]
[1768659683841,5.26574367,143.97,143.92,9.52721474]
[1768659684048,3.19892546,143.98,143.92,9.52721474]
[1768659684248,5.26574243,143.97,143.92,9.52721474]
[1768659684557,3.19892546,143.98,143.92,9.52721474]
[1768659684854,5.26583351,143.97,143.92,9.52721474]
[1768659685053,3.19892546,143.98,143.92,9.52721474]
[1768659685255,5.26583227,143.97,143.92,9.52721474]
[1768659685550,3.19892546,143.98,143.92,9.52721474]
[1768659685756,5.2659117,143.97,143.92,9.52721474]
[1768659685955,3.19892546,143.98,143.92,9.52721474]
[1768659686155,5.26579173,143.97,143.92,9.52721474]
[1768659686454,3.19892546,143.98,143.92,9.52721474]
[1768659686651,5.26578137,143.97,143.92,9.52721474]
[1768659686854,3.19892546,143.98,143.92,9.52721474]
[1768659687057,5.26578137,143.97,143.92,9.52721474]
[1768659687256,3.19892546,143.98,143.92,9.52721474]
[1768659687452,5.26577226,143.97,143.92,9.52721474]
[1768659687648,3.19892546,143.98,143.92,9.52721474]
[1768659687849,5.26577227,143.97,143.92,9.52721474]
[1768659688056,3.19892546,143.98,143.92,9.52721474]
[1768659688355,5.26577227,143.97,143.92,9.52721474]
[1768659688557,3.19892546,143.98,143.92,9.52721474]
[1768659688751,5.26576316,143.97,143.92,9.52721474]
[1768659688951,3.19892546,143.98,143.92,9.52721474]
[1768659689251,5.26576016,143.97,143.92,9.52721474]
[1768659689452,3.19892546,143.98,143.92,9.52721474]
[1768659689651,5.26572348,143.97,143.93,6.2551]
[1768659689858,3.19892546,143.98,143.93,6.2551]
[1768659690056,5.265724,143.97,143.93,6.2551]
[1768659690358,3.19892546,143.98,143.93,6.2551]
[1768659690549,5.26569573,143.97,143.93,6.2551]
[1768659690750,3.19892546,143.98,143.93,6.2551]
[1768659690947,5.26569449,143.97,143.93,6.2551]
[1768659691151,3.19892546,143.98,143.93,6.2551]
[1768659691351,5.26569659,143.97,143.93,6.2551]
[1768659691548,3.19892546,143.98,143.93,6.2551]
[1768659691752,5.26569659,143.97,143.93,6.2551]
[1768659691952,3.19892546,143.98,143.93,6.2551]
[1768659692152,5.26569659,143.97,143.92,3.27171474]
[1768659692358,3.19892546,143.98,143.92,3.27171474]
[1768659692553,5.26618359,143.97,143.92,3.27171474]
[1768659692753,3.19892546,143.98,143.92,3.27171474]
[1768659692954,5.26618359,143.97,143.92,3.27171474]
[1768659693159,3.19892546,143.98,143.92,3.27171474]
[1768659693361,5.26635699,143.97,143.92,3.27171474]
[1768659693658,3.19892546,143.98,143.92,3.27171474]
[1768659693860,5.23932332,143.97,143.92,3.27171474]
[1768659694060,3.19892546,143.98,143.92,3.27171474]
[1768659694261,5.23932813,143.97,143.92,3.27171474]
[1768659694462,3.19892546,143.98,143.92,3.27171474]
[1768659694661,5.23950005,143.97,143.92,3.27171474]
[1768659694961,3.19892546,143.98,143.92,3.27171474]
[1768659695157,5.23950005,143.97,143.92,3.27171474]
[1768659695358,3.19892546,143.98,143.92,3.27171474]
[1768659695659,5.23967619,143.97,143.92,3.27171474]
[1768659695859,3.19892546,143.98,143.92,3.27171474]
[1768659696162,5.23967321,143.97,143.92,3.27171474]
[1768659696362,3.19892546,143.98,143.92,3.27171474]
[1768659696562,5.2398576,143.97,143.92,3.27171474]
[1768659696863,3.19892546,143.98,143.92,3.27171474]
[1768659697161,5.23961886,143.97,143.92,3.27171474]
[1768659697357,3.19892546,143.98,143.92,3.27171474]
[1768659697553,5.23963833,143.97,143.92,3.27171474]
[1768659697761,3.19892546,143.98,143.92,3.27171474]
[1768659698060,5.23963833,143.97,143.92,3.27171474]
[1768659698261,3.19892546,143.98,143.92,3.27171474]
[1768659698456,5.23958222,143.97,143.92,3.27171474]
[1768659698657,3.19892546,143.98,143.92,3.27171474]
[1768659698857,5.23958222,143.97,143.92,3.27171474]
[1768659699057,3.19892546,143.98,143.92,3.27171474]
[1768659699259,5.23958222,143.97,143.92,3.27171474]
[1768659699455,3.19892546,143.98,143.92,3.27171474]
[1768659699655,5.23956294,143.97,143.92,3.27171474]
[1768659699851,3.19892546,143.98,143.92,3.27171474]
[1768659700056,5.23956417,143.97,143.92,3.27171474]
[1768659700260,3.19892546,143.98,143.92,3.27171474]
[1768659700560,5.23947606,143.97,143.92,3.27171474]
[1768659700759,3.19892546,143.98,143.92,3.27171474]
[1768659700963,5.2394773,143.97,143.92,3.27171474]
[1768659701165,3.19892546,143.98,143.92,3.27171474]
[1768659701365,5.2394289,143.97,143.92,3.27171474]
[1768659701565,3.19892546,143.98,143.92,3.27171474]
[1768659701863,5.2394289,143.97,143.92,3.27171474]
[1768659702063,3.19892546,143.98,143.92,3.27171474]
[1768659702265,5.23933445,143.97,143.92,3.27171474]
[1768659702456,3.19892546,143.98,143.92,3.27171474]
[1768659702661,5.23929926,143.97,143.92,3.27171474]
[1768659702961,3.19892546,143.98,143.92,3.27171474]
[1768659703157,5.23929926,143.97,143.92,3.27171474]
[1768659703458,3.19892546,143.98,143.92,3.27171474]
[1768659703659,5.23919709,143.97,143.92,3.27171474]
[1768659703864,3.19892546,143.98,143.92,3.27171474]
[1768659704059,5.23919709,143.97,143.92,3.27171474]
[1768659704255,3.19892546,143.98,143.92,3.27171474]
[1768659704459,5.23912038,143.97,143.92,3.27171474]
[1768659704662,3.19892546,143.98,143.92,3.27171474]
[1768659704963,5.23912038,143.97,143.92,3.27171474]
[1768659705264,3.19892546,143.98,143.92,3.27171474]
[1768659705463,5.23907814,143.97,143.92,3.27171474]
[1768659705665,3.19892546,143.98,143.92,3.27171474]
[1768659705863,5.23907814,143.97,143.92,3.27171474]
[1768659706064,3.19892546,143.98,143.92,3.27171474]
[1768659706267,5.23907814,143.97,143.92,3.27171474]
[1768659706462,3.19892546,143.98,143.92,3.27171474]
[1768659706664,5.2390464,143.97,143.92,3.27171474]
[1768659706865,3.19892546,143.98,143.92,3.27171474]
[1768659707067,5.2390464,143.97,143.92,3.27171474]
[1768659707270,3.19892546,143.98,143.92,3.27171474]
[1768659707569,5.23904401,143.97,143.92,3.27171474]
[1768659707870,3.19892546,143.98,143.92,3.27171474]
[1768659708060,5.23904401,143.97,143.92,3.27171474]
[1768659708260,3.19892546,143.98,143.92,3.27171474]
[1768659708461,8.44641165,143.97,143.9,3.04746058]
[1768659708662,3.20734786,143.97,143.9,3.04746058]
[1768659709168,3.20734786,143.96,143.9,3.04746058]
[1768659713974,3.20734786,143.96,143.9,9.30386058]
[1768659716875,3.20734786,143.96,143.91,6.256]
[1768659721874,3.20734786,143.96,143.9,3.04746058]
[1768659727278,8.4108471,143.95,143.9,3.04746058]
[1768659727480,3.20795669,143.95,143.9,3.04746058]
[1768659728990,4.93935825,143.95,143.9,3.04746058]
[1768659731089,4.93935825,143.93,143.86,145.77395295]
[1768659731283,3.20795669,143.92,143.86,145.77395295]
[1768659741692,3.20795669,143.92,143.87,3.01893875]
[1768659752611,3.20795669,143.92,143.86,142.7550142]
[1768659752807,3.20795669,143.92,143.85,3.22069274]
[1768659753809,3.20795669,143.92,143.86,3.22069274]
[1768659762120,3.20795669,143.92,143.86,9.47879274]
[1768659772330,5.21103344,143.91,143.86,9.47879274]
[1768659772531,3.20795669,143.92,143.86,9.47879274]
[1768659772727,5.21103344,143.91,143.86,9.47879274]
[1768659772927,3.20795669,143.92,143.86,9.47879274]
[1768659773126,5.21103344,143.91,143.86,9.47879274]
[1768659773332,3.20795669,143.92,143.86,9.47879274]
[1768659773536,5.21334363,143.91,143.86,9.47879274]
[1768659773735,3.20795669,143.92,143.86,9.47879274]
[1768659773926,5.21334363,143.91,143.86,9.47879274]
[1768659774126,3.20795669,143.92,143.86,9.47879274]
[1768659774329,5.21334363,143.91,143.86,9.47879274]
[1768659774629,3.20795669,143.92,143.86,9.47879274]
[1768659774834,5.21532633,143.91,143.86,9.47879274]
[1768659775034,3.30320284,143.94,143.88,3.00807324]
[1768659775234,5.2149194,143.93,143.88,3.00807324]